fUST/lending_fUST_20260307
["ID","MTS","AMOUNT","RATE_DAILY","PERIOD"]
[407884082,1772892638687,-151.09522843,3.8e-05,2]
[407884083,1772892638697,-155.01760522,3.8e-05,2]
[407884084,1772892638707,-151.6554876,3.8e-05,2]
[407884085,1772892638717,-888.75109711,3.8e-05,2]
[407884391,1772892643865,-2570.65,3.8e-05,2]
[407884650,1772892646508,-1246.32820227,3.8e-05,2]
[407884675,1772893699689,-1282.55756277,2.723e-05,2]
[407884676,1772893699710,-717.44243723,2.75e-05,2]
[407884677,1772893700785,-947.63325687,2.75e-05,2]
[407884678,1772893700806,-318.48053084,3.011e-05,2]
[407884679,1772893700826,-175.941699,3.272e-05,2]
[407884680,1772893700846,-557.94451329,3.49e-05,2]
[407884681,1772893701672,-2000.0,3.49e-05,2]
[407884682,1772893702105,-2000.0,3.49e-05,2]
[407884683,1772893702416,-2000.0,3.49e-05,2]
[407884684,1772893702798,-2000.0,3.49e-05,2]
[407884685,1772893703121,-2000.0,3.49e-05,2]
[407884686,1772893703541,-2000.0,3.49e-05,2]
[407884687,1772893703851,-2000.0,3.49e-05,2]
[407884688,1772893704264,-2000.0,3.49e-05,2]
[407884689,1772893704701,-2000.0,3.49e-05,2]
[407884690,1772893705101,-2000.0,3.49e-05,2]
[407884691,1772893705579,-2000.0,3.49e-05,2]
[407884692,1772893706012,-2000.0,3.49e-05,2]
[407884693,1772893706495,-2000.0,3.49e-05,2]
[407884694,1772893706860,-1001.05548671,3.49e-05,2]
[407884695,1772893706885,-998.94451329,3.5e-05,2]
[407884696,1772893707245,-2000.0,3.5e-05,2]
[407884697,1772893708334,-2000.0,3.5e-05,2]
[407884698,1772893708406,-2000.0,3.5e-05,2]
[407884699,1772893710268,-2000.0,3.5e-05,2]
[407884700,1772893714913,-1600.0,3.5e-05,2]
[407884701,1772893742264,-5000.0,3.465e-05,2]
[407884702,1772893742287,-9200.0,3.5e-05,2]
[407884703,1772893824421,-766.79663394,3.464e-05,2]
[407884704,1772893824450,-13.06917204,3.473e-05,2]
[407884705,1772893824466,-486.93082796,3.473e-05,2]
[407884706,1772893824476,-279.86580598,3.473e-05,2]
[407884707,1772893824488,-220.13419402,3.473e-05,2]
[407884708,1772893824497,-279.86580598,3.473e-05,2]
[407884728,1772893831552,-220.13419402,3.473e-05,2]
[407884730,1772893831562,-300.0,3.499e-05,2]
[407884732,1772893831571,-966.70501655,3.5e-05,2]
[407884737,1772893831611,-987.58322072,3.5e-05,2]
[407884851,1772893840348,-110.38381726,3.465e-05,2]
[407885102,1772893845748,-632.60628967,3.465e-05,2]
[407885104,1772893845757,-4406.4941281,3.465e-05,2]
[407885195,1772894283083,285.17,3.8e-06,2]
[407885203,1772894529905,6960.08645528,2e-05,2]
[407885208,1772894663138,-2000.0,3.295e-05,2]
[407885209,1772894665186,-2000.0,3.295e-05,2]
[407885210,1772894666064,-1000.0,3.295e-05,2]
[407885211,1772894690057,-2000.0,3.341e-05,2]
[407885212,1772894691544,-2000.0,3.341e-05,2]
[407885213,1772894694313,-1000.0,3.341e-05,2]
[407885214,1772894694335,-346.06889313,3.375e-05,2]
[407885239,1772894877653,1118.79836912,2e-05,2]
[407885263,1772895031746,-2075.87979105,2.478e-05,2]
[407885552,1772895037898,-2924.12020895,2.478e-05,2]
[407885553,1772895037908,-1217.7259638,2.503e-05,2]
[407885554,1772895037916,-339.14751527,2.967e-05,2]
[407885555,1772895037925,-400.97868007,3.274e-05,2]
[407885556,1772895037935,-300.0,3.451e-05,2]
[407885557,1772895037944,-1200.0,3.451e-05,2]
[407885558,1772895037953,-3240.6541708,3.452e-05,2]
[407885559,1772895037962,-289.2533763,3.452e-05,2]
[407885560,1772895037971,-5139.46269913,3.465e-05,2]
[407885561,1772895037980,-2329.6958784,3.48e-05,2]
[407885562,1772895037989,-15849.0959621,3.48e-05,2]
[407885563,1772895037998,-151.0,3.48e-05,2]
[407885564,1772895038007,-13680.6676451,3.485e-05,2]
[407885565,1772895038017,-600.0,3.569e-05,2]
[407885566,1772895038027,-1891.592,3.603e-05,2]
[407885567,1772895038039,-579.656,3.603e-05,2]
[407885568,1772895038048,-730.0,3.603e-05,2]
[407885569,1772895038057,-155.07,3.603e-05,2]
[407885570,1772895038066,-249.047,3.603e-05,2]
[407885571,1772895038077,-420.0,3.796e-05,2]
[407885572,1772895038086,-250.0,3.8e-05,2]
[407885573,1772895038095,-720.0,3.926e-05,2]
[407885574,1772895038104,-3052.5695626,3.928e-05,2]
[407885575,1772895038114,-500.0,3.948e-05,2]
[407885576,1772895038124,-175.941699,3.96e-05,2]
[407885577,1772895038133,-723.0876841,3.975e-05,2]
[407885578,1772895038142,-681.1203353,4.027e-05,2]
[407885579,1772895038151,-161.3426707,4.092e-05,2]
[407885580,1772895038161,-162.380719,4.145e-05,2]
[407885581,1772895038170,-168.3888056,4.145e-05,2]
[407885582,1772895038179,-174.61919141,4.145e-05,2]
[407885583,1772895038188,-181.08010149,4.145e-05,2]
[407885584,1772895038198,-187.78006525,4.145e-05,2]
[407885585,1772895038208,-194.72792766,4.145e-05,2]
[407885586,1772895038217,-201.93286099,4.145e-05,2]
[407885587,1772895038226,-670.4955986,4.145e-05,2]
[407885588,1772895038235,-209.40437684,4.145e-05,2]
[407885589,1772895038245,-217.15233878,4.145e-05,2]
[407885590,1772895038263,-225.18697532,4.145e-05,2]
[407885591,1772895038272,-233.51889341,4.145e-05,2]
[407885592,1772895038282,-242.15909246,4.145e-05,2]
[407885593,1772895038291,-251.11897888,4.145e-05,2]
[407885594,1772895038301,-260.4103811,4.145e-05,2]
[407885595,1772895038311,-270.0455652,4.145e-05,2]
[407885596,1772895038321,-280.03725112,4.145e-05,2]
[407885597,1772895038330,-290.39862941,4.145e-05,2]
[407885598,1772895038339,-301.1433787,4.145e-05,2]
[407885599,1772895038349,-2150.738,4.145e-05,2]
[407885600,1772895038359,-3536.4113202,4.167e-05,2]
[407885601,1772895038368,-587.0,4.176e-05,2]
[407885602,1772895038378,-864.0,4.318e-05,2]
[407885603,1772895038388,-789.0800242,4.32e-05,2]
[407885604,1772895038397,-800.51977619,4.41e-05,2]
[407885605,1772895038406,-162.380719,4.451e-05,2]
[407885606,1772895038417,-665.42,4.468e-05,2]
[407885607,1772895038426,-493.0,4.593e-05,2]
[407885608,1772895038436,-2230.315306,4.693e-05,2]
[407885609,1772895038445,-34731.35658379,4.7e-05,2]
[407885635,1772895040447,-468.27017856,4.7e-05,2]
[407885636,1772895040459,-1726.54264126,4.7e-05,2]
[407885645,1772895043018,-1982.23355044,4.7e-05,2]
[407885655,1772895045857,-1542.89355435,4.7e-05,2]
[407885656,1772895045869,-11563.71856884,4.7e-05,2]
[407885664,1772895624403,-2211.00591821,2.377e-05,2]
[407885665,1772895624473,-2009.12827581,2.377e-05,2]
[407885666,1772895653665,-797.89358487,2.353e-05,2]
[407885667,1772895653700,-615.21874847,2.377e-05,2]
[407885670,1772895683045,-164.64705751,2.377e-05,2]
[407885671,1772895683072,-132.59989528,2.413e-05,2]
[407885672,1772895683107,-203.39967929,2.413e-05,2]
[407885673,1772895712353,-297.24695279,2.474e-05,2]
[407885675,1772895781906,2000.0,2e-05,2]
[407885676,1772895795981,50000.0,2e-05,2]
[407885686,1772896055812,-5000.0,2.353e-05,2]
[407885687,1772896055835,-5000.0,2.377e-05,2]
[407885688,1772896055858,-5000.0,2.401e-05,2]
[407885689,1772896055879,-300.0,2.423e-05,2]
[407885690,1772896055902,-1200.0,2.424e-05,2]
[407885691,1772896055924,-300.0,2.448e-05,2]
[407885692,1772896055945,-300.0,2.448e-05,2]
[407885693,1772896055967,-300.0,2.448e-05,2]
[407885694,1772896055989,-333.26798486,2.462e-05,2]
[407885695,1772896056012,-2067.9101771,2.5e-05,2]
[407885696,1772896056034,-420.0,2.665e-05,2]
[407885697,1772896056056,-1680.0,2.666e-05,2]
[407885698,1772896056078,-350.0,2.693e-05,2]
[407885699,1772896056100,-285.0,2.693e-05,2]
[407885700,1772896056124,-420.0,2.693e-05,2]
[407885701,1772896056153,-500.0,4.211e-05,2]
[407885702,1772896056175,-697.29,4.211e-05,2]
[407885703,1772896056196,-1619.04982337,4.23e-05,2]
[407885704,1772896056217,-7229.8853857,4.4e-05,2]
[407885705,1772896056239,-647.04590486,4.41e-05,2]
[407885706,1772896056261,-393.25622213,4.462e-05,2]
[407885707,1772896056283,-500.0,4.473e-05,2]
[407885708,1772896056304,-500.0,4.473e-05,2]
[407885709,1772896056329,-500.0,4.473e-05,2]
[407885710,1772896056354,-2400000.0,4.5e-05,2]
[407885711,1772896056380,-500.0,4.51e-05,2]
[407885712,1772896056405,-4834.04527639,4.6e-05,2]
[407885713,1772896056428,-11914.14934042,4.6e-05,2]
[407885714,1772896056451,-9520.55413397,4.6e-05,2]
[407885715,1772896056474,-10669.30407965,4.6e-05,2]
[407885716,1772896056498,-11818.05402545,4.6e-05,2]
[407885717,1772896056523,-162.380719,4.697e-05,2]
[407885718,1772896056549,-168.3888056,4.697e-05,2]
[407885719,1772896056572,-174.61919141,4.697e-05,2]
[407885720,1772896056595,-181.08010149,4.697e-05,2]
[407885721,1772896056912,-187.78006525,4.697e-05,2]
[407885722,1772896056938,-194.72792766,4.697e-05,2]
[407885723,1772896056961,-201.93286099,4.697e-05,2]
[407885724,1772896056987,-209.40437684,4.697e-05,2]
[407885725,1772896057011,-217.15233878,4.697e-05,2]
[407885726,1772896057035,-225.18697532,4.697e-05,2]
[407885727,1772896057059,-233.51889341,4.697e-05,2]
[407885728,1772896057084,-242.15909246,4.697e-05,2]
[407885729,1772896057108,-251.11897888,4.697e-05,2]
[407885730,1772896057133,-260.4103811,4.697e-05,2]
[407885731,1772896057157,-270.0455652,4.697e-05,2]
[407885732,1772896057182,-280.03725112,4.697e-05,2]
[407885733,1772896057207,-290.39862941,4.697e-05,2]
[407885734,1772896057232,-301.1433787,4.697e-05,2]
[407885735,1772896057255,-2150.738,4.697e-05,2]
[407885736,1772896057282,-701028.58243069,4.7e-05,2]
[407885737,1772896057305,-533.6798508,4.7e-05,2]
[407885738,1772896057330,-17217.04718138,4.7e-05,2]
[407885739,1772896057353,-38000.0,4.7e-05,2]
[407885740,1772896057376,-38000.0,4.7e-05,2]
[407885741,1772896057401,-600.0,4.793e-05,2]
[407885742,1772896057422,-4086.408057,4.795e-05,2]
[407885743,1772896057445,-2000.00000107,4.8e-05,2]
[407885744,1772896057468,-160.0,4.8e-05,2]
[407885745,1772896057491,-160.0,4.8e-05,2]
[407885746,1772896057512,-500.0,4.8e-05,2]
[407885747,1772896057537,-1780.11454026,4.95e-05,2]
[407885748,1772896057559,-168.3888056,4.999e-05,2]
[407885749,1772896057582,-338.33,5e-05,2]
[407885750,1772896057604,-1281.03949984,5e-05,2]
[407885751,1772896057626,-500.0,5e-05,2]
[407885752,1772896057647,-347.98871345,5e-05,2]
[407885753,1772896057669,-500.0,5e-05,2]
[407885754,1772896057690,-500.0,5e-05,2]
[407885755,1772896057711,-500.0,5e-05,2]
[407885756,1772896057733,-500.0,5e-05,2]
[407885757,1772896057756,-500.0,5e-05,2]
[407885758,1772896057778,-500.0,5e-05,2]
[407885759,1772896057800,-500.0,5e-05,2]
[407885760,1772896057821,-500.0,5e-05,2]
[407885761,1772896057843,-500.0,5e-05,2]
[407885762,1772896057864,-494.9660544,5e-05,2]
[407885763,1772896057885,-500.0,5e-05,2]
[407885764,1772896057906,-500.0,5e-05,2]
[407885765,1772896057927,-500.0,5e-05,2]
[407885766,1772896057949,-500.0,5e-05,2]
[407885767,1772896057972,-500.0,5e-05,2]
[407885768,1772896057993,-500.0,5e-05,2]
[407885769,1772896058015,-342.055918,5e-05,2]
[407885770,1772896058038,-500.0,5e-05,2]
[407885771,1772896058060,-500.0,5e-05,2]
[407885772,1772896058082,-500.0,5e-05,2]
[407885773,1772896058103,-500.0,5e-05,2]
[407885774,1772896058125,-331.87880906,5e-05,2]
[407885775,1772896058148,-1937.74088951,5e-05,2]
[407885776,1772896058169,-1937.74088951,5e-05,2]
[407885777,1772896058191,-1937.74088951,5e-05,2]
[407885778,1772896058213,-1937.74088951,5e-05,2]
[407885779,1772896058235,-1937.74088951,5e-05,2]
[407885780,1772896058258,-1937.74088951,5e-05,2]
[407885781,1772896058280,-1937.74088951,5e-05,2]
[407885782,1772896058302,-1937.74088951,5e-05,2]
[407885783,1772896058326,-1937.74088951,5e-05,2]
[407885784,1772896058348,-1937.74088951,5e-05,2]
[407885785,1772896058370,-1937.74088951,5e-05,2]
[407885786,1772896058395,-1937.74088951,5e-05,2]
[407885787,1772896058416,-1937.74088951,5e-05,2]
[407885788,1772896058439,-1937.74088951,5e-05,2]
[407885789,1772896058461,-1937.74088951,5e-05,2]
[407885790,1772896058484,-1937.74088951,5e-05,2]
[407885791,1772896058508,-1937.74088951,5e-05,2]
[407885792,1772896058530,-1937.74088951,5e-05,2]
[407885793,1772896058553,-1937.74088951,5e-05,2]
[407885794,1772896058577,-1937.74088951,5e-05,2]
[407885795,1772896058600,-1937.74088951,5e-05,2]
[407885796,1772896058623,-1937.74088951,5e-05,2]
[407885797,1772896058646,-1937.74088951,5e-05,2]
[407885798,1772896058669,-1937.74088951,5e-05,2]
[407885799,1772896058692,-1937.74088951,5e-05,2]
[407885800,1772896058715,-1937.74088951,5e-05,2]
[407885801,1772896058736,-1937.74088951,5e-05,2]
[407885802,1772896058758,-1937.74088951,5e-05,2]
[407885803,1772896058780,-1937.74088951,5e-05,2]
[407885804,1772896058802,-1937.74088951,5e-05,2]
[407885805,1772896058824,-1937.74088951,5e-05,2]
[407885806,1772896058847,-1937.74088951,5e-05,2]
[407885807,1772896058869,-1937.74088951,5e-05,2]
[407885808,1772896058892,-1937.74088951,5e-05,2]
[407885809,1772896058915,-1937.74088951,5e-05,2]
[407885810,1772896058937,-1937.74088951,5e-05,2]
[407885811,1772896058959,-1937.74088951,5e-05,2]
[407885812,1772896058981,-1937.74088951,5e-05,2]
[407885813,1772896059004,-1937.74088951,5e-05,2]
[407885814,1772896059028,-1937.74088951,5e-05,2]
[407885815,1772896059051,-1937.74088951,5e-05,2]
[407885816,1772896059075,-1937.74088951,5e-05,2]
[407885817,1772896059098,-1937.74088951,5e-05,2]
[407885818,1772896059122,-1937.74088951,5e-05,2]
[407885819,1772896059144,-1937.74088951,5e-05,2]
[407885820,1772896059168,-1937.74088951,5e-05,2]
[407885821,1772896059191,-1937.74088951,5e-05,2]
[407885822,1772896059213,-1937.74088951,5e-05,2]
[407885823,1772896059236,-1937.74088951,5e-05,2]
[407885824,1772896059260,-1937.74088951,5e-05,2]
[407885825,1772896059283,-1937.74088951,5e-05,2]
[407885826,1772896059307,-1937.74088951,5e-05,2]
[407885827,1772896059333,-1937.74088951,5e-05,2]
[407885828,1772896059355,-1937.74088951,5e-05,2]
[407885829,1772896059378,-1937.74088951,5e-05,2]
[407885830,1772896059403,-1937.74088951,5e-05,2]
[407885831,1772896059429,-1937.74088951,5e-05,2]
[407885832,1772896059451,-1937.74088951,5e-05,2]
[407885833,1772896059474,-1937.74088951,5e-05,2]
[407885834,1772896059497,-1937.74088951,5e-05,2]
[407885835,1772896059520,-1937.74088951,5e-05,2]
[407885836,1772896059544,-1937.74088951,5e-05,2]
[407885837,1772896059567,-1937.74088951,5e-05,2]
[407885838,1772896059592,-1937.74088951,5e-05,2]
[407885839,1772896059617,-1937.74088951,5e-05,2]
[407885840,1772896059641,-1937.74088951,5e-05,2]
[407885841,1772896059664,-1937.74088951,5e-05,2]
[407885842,1772896059689,-1937.74088951,5e-05,2]
[407885843,1772896059711,-1937.74088951,5e-05,2]
[407885844,1772896059734,-1937.74088951,5e-05,2]
[407885845,1772896059759,-1580.5383686,5e-05,2]
[407885846,1772896059782,-1580.5383686,5e-05,2]
[407885847,1772896059804,-1580.5383686,5e-05,2]
[407885848,1772896059826,-1580.5383686,5e-05,2]
[407885849,1772896059848,-1580.5383686,5e-05,2]
[407885850,1772896059870,-1580.5383686,5e-05,2]
[407885851,1772896059891,-1580.5383686,5e-05,2]
[407885852,1772896060148,-1580.5383686,5e-05,2]
[407885853,1772896060171,-1580.5383686,5e-05,2]
[407885854,1772896060196,-1580.5383686,5e-05,2]
[407885855,1772896060222,-1580.5383686,5e-05,2]
[407885856,1772896060245,-1580.5383686,5e-05,2]
[407885857,1772896060268,-1580.5383686,5e-05,2]
[407885858,1772896060292,-1580.5383686,5e-05,2]
[407885859,1772896060315,-1580.5383686,5e-05,2]
[407885860,1772896060342,-1580.5383686,5e-05,2]
[407885861,1772896060365,-1580.5383686,5e-05,2]
[407885862,1772896060387,-1580.5383686,5e-05,2]
[407885863,1772896060409,-1580.5383686,5e-05,2]
[407885864,1772896060431,-1580.5383686,5e-05,2]
[407885865,1772896060453,-1580.5383686,5e-05,2]
[407885866,1772896060476,-1580.5383686,5e-05,2]
[407885867,1772896060499,-1580.5383686,5e-05,2]
[407885868,1772896060521,-1580.5383686,5e-05,2]
[407885869,1772896060543,-1580.5383686,5e-05,2]
[407885870,1772896060565,-1580.5383686,5e-05,2]
[407885871,1772896060588,-1580.5383686,5e-05,2]
[407885872,1772896060610,-1580.5383686,5e-05,2]
[407885873,1772896060632,-1580.5383686,5e-05,2]
[407885874,1772896060654,-1580.5383686,5e-05,2]
[407885875,1772896060676,-1580.5383686,5e-05,2]
[407885876,1772896060698,-1580.5383686,5e-05,2]
[407885877,1772896060721,-1580.5383686,5e-05,2]
[407885878,1772896060743,-1580.5383686,5e-05,2]
[407885879,1772896060766,-1580.5383686,5e-05,2]
[407885880,1772896060789,-1580.5383686,5e-05,2]
[407885881,1772896060811,-1580.5383686,5e-05,2]
[407885882,1772896060833,-1580.5383686,5e-05,2]
[407885883,1772896060857,-1580.5383686,5e-05,2]
[407885884,1772896060879,-1580.5383686,5e-05,2]
[407885885,1772896060902,-1580.5383686,5e-05,2]
[407885886,1772896060924,-1580.5383686,5e-05,2]
[407885887,1772896060946,-1580.5383686,5e-05,2]
[407885888,1772896060970,-1580.5383686,5e-05,2]
[407885889,1772896060993,-1580.5383686,5e-05,2]
[407885890,1772896061017,-1580.5383686,5e-05,2]
[407885891,1772896061040,-1580.5383686,5e-05,2]
[407885892,1772896061063,-1580.5383686,5e-05,2]
[407885893,1772896061086,-1580.5383686,5e-05,2]
[407885894,1772896061109,-1580.5383686,5e-05,2]
[407885895,1772896061131,-1580.5383686,5e-05,2]
[407885896,1772896061155,-1580.5383686,5e-05,2]
[407885897,1772896061177,-1580.5383686,5e-05,2]
[407885898,1772896061203,-1580.5383686,5e-05,2]
[407885899,1772896061226,-1580.5383686,5e-05,2]
[407885900,1772896061248,-1580.5383686,5e-05,2]
[407885901,1772896061270,-1580.5383686,5e-05,2]
[407885902,1772896061293,-1580.5383686,5e-05,2]
[407885903,1772896061319,-1580.5383686,5e-05,2]
[407885904,1772896061345,-1580.5383686,5e-05,2]
[407885905,1772896061368,-1580.5383686,5e-05,2]
[407885906,1772896061391,-1580.5383686,5e-05,2]
[407885907,1772896061413,-1580.5383686,5e-05,2]
[407885908,1772896061436,-1927.54225325,5e-05,2]
[407885909,1772896061458,-1927.54225325,5e-05,2]
[407885910,1772896061482,-1927.54225325,5e-05,2]
[407885911,1772896061505,-1927.54225325,5e-05,2]
[407885912,1772896061526,-1927.54225325,5e-05,2]
[407885913,1772896061549,-1927.54225325,5e-05,2]
[407885914,1772896061572,-1927.54225325,5e-05,2]
[407885915,1772896061594,-1927.54225325,5e-05,2]
[407885916,1772896061616,-1927.54225325,5e-05,2]
[407885917,1772896061639,-1927.54225325,5e-05,2]
[407885918,1772896061664,-1927.54225325,5e-05,2]
[407885919,1772896061690,-1927.54225325,5e-05,2]
[407885920,1772896061713,-1927.54225325,5e-05,2]
[407885921,1772896061735,-1927.54225325,5e-05,2]
[407885922,1772896061758,-1927.54225325,5e-05,2]
[407885923,1772896061781,-1927.54225325,5e-05,2]
[407885924,1772896061805,-1927.54225325,5e-05,2]
[407885925,1772896061827,-1927.54225325,5e-05,2]
[407885926,1772896061849,-1531.90641879,5e-05,2]
[407885927,1772896061873,-1531.90641879,5e-05,2]
[407885928,1772896061895,-1531.90641879,5e-05,2]
[407885929,1772896061920,-1531.90641879,5e-05,2]
[407885930,1772896061944,-1531.90641879,5e-05,2]
[407885931,1772896061972,-1531.90641879,5e-05,2]
[407885932,1772896062012,-1531.90641879,5e-05,2]
[407885933,1772896062036,-1531.90641879,5e-05,2]
[407885934,1772896062059,-1531.90641879,5e-05,2]
[407885935,1772896062083,-1531.90641879,5e-05,2]
[407885936,1772896062107,-1531.90641879,5e-05,2]
[407885937,1772896062131,-1531.90641879,5e-05,2]
[407885938,1772896062155,-1531.90641879,5e-05,2]
[407885939,1772896062178,-1531.90641879,5e-05,2]
[407885940,1772896062201,-1531.90641879,5e-05,2]
[407885941,1772896062235,-1531.90641879,5e-05,2]
[407885942,1772896062260,-1531.90641879,5e-05,2]
[407885943,1772896062287,-1531.90641879,5e-05,2]
[407885944,1772896062333,-1531.90641879,5e-05,2]
[407885945,1772896062364,-1531.90641879,5e-05,2]
[407885946,1772896062392,-1531.90641879,5e-05,2]
[407885947,1772896062417,-1531.90641879,5e-05,2]
[407885948,1772896062442,-1531.90641879,5e-05,2]
[407885949,1772896062466,-1531.90641879,5e-05,2]
[407885950,1772896062491,-1531.90641879,5e-05,2]
[407885951,1772896062516,-1531.90641879,5e-05,2]
[407885952,1772896062540,-1927.54225322,5e-05,2]
[407885953,1772896062563,-208.73516347,5e-05,2]
[407885954,1772896062586,-500.0,5e-05,2]
[407885955,1772896062608,-500.0,5e-05,2]
[407885956,1772896062631,-500.0,5e-05,2]
[407885957,1772896062653,-500.0,5e-05,2]
[407885958,1772896062675,-500.0,5e-05,2]
[407885959,1772896062698,-500.0,5e-05,2]
[407885960,1772896062721,-500.0,5e-05,2]
[407885961,1772896062742,-500.0,5e-05,2]
[407885962,1772896062764,-500.0,5e-05,2]
[407885963,1772896062788,-500.0,5e-05,2]
[407885964,1772896062812,-500.0,5e-05,2]
[407885965,1772896062834,-500.0,5e-05,2]
[407885966,1772896062857,-500.0,5e-05,2]
[407885967,1772896062879,-500.0,5e-05,2]
[407885968,1772896062901,-500.0,5e-05,2]
[407885969,1772896062923,-500.0,5e-05,2]
[407885970,1772896062946,-500.0,5e-05,2]
[407885971,1772896062969,-500.0,5e-05,2]
[407885972,1772896062992,-500.0,5e-05,2]
[407885973,1772896063014,-500.0,5e-05,2]
[407885974,1772896063040,-500.0,5e-05,2]
[407885975,1772896063062,-500.0,5e-05,2]
[407885976,1772896063084,-500.0,5e-05,2]
[407885977,1772896063108,-154.73551199,5e-05,2]
[407885978,1772896063132,-37939.73226951,5e-05,2]
[407885979,1772896063155,-1015.76438735,5e-05,2]
[407885980,1772896063178,-1015.76438735,5e-05,2]
[407885981,1772896063201,-1015.76438735,5e-05,2]
[407885982,1772896063223,-1015.76438735,5e-05,2]
[407885983,1772896063487,-1015.76438735,5e-05,2]
[407885984,1772896063513,-1015.76438735,5e-05,2]
[407885985,1772896063536,-1015.76438735,5e-05,2]
[407885986,1772896063560,-1015.76438735,5e-05,2]
[407885987,1772896063585,-1015.76438735,5e-05,2]
[407885988,1772896063609,-1015.76438735,5e-05,2]
[407885989,1772896063634,-1015.76438735,5e-05,2]
[407885990,1772896063659,-1015.76438735,5e-05,2]
[407885991,1772896063683,-1015.76438735,5e-05,2]
[407885992,1772896063706,-1015.76438735,5e-05,2]
[407885993,1772896063728,-1015.76438735,5e-05,2]
[407885994,1772896063751,-1015.76438735,5e-05,2]
[407885995,1772896063773,-1015.76438735,5e-05,2]
[407885996,1772896063795,-1015.76438735,5e-05,2]
[407885997,1772896063817,-1015.76438735,5e-05,2]
[407885998,1772896063839,-1015.76438735,5e-05,2]
[407885999,1772896063862,-1015.76438735,5e-05,2]
[407886000,1772896063884,-1015.76438735,5e-05,2]
[407886001,1772896063907,-1015.76438735,5e-05,2]
[407886002,1772896063932,-1015.76438735,5e-05,2]
[407886003,1772896063957,-1015.76438735,5e-05,2]
[407886004,1772896063980,-1015.76438735,5e-05,2]
[407886005,1772896064003,-1015.76438735,5e-05,2]
[407886006,1772896064025,-1015.76438735,5e-05,2]
[407886007,1772896064047,-1015.76438735,5e-05,2]
[407886008,1772896064069,-1015.76438735,5e-05,2]
[407886009,1772896064091,-1015.76438735,5e-05,2]
[407886010,1772896064114,-1015.76438735,5e-05,2]
[407886011,1772896064136,-1015.76438735,5e-05,2]
[407886012,1772896064160,-1015.76438735,5e-05,2]
[407886013,1772896064185,-1015.76438735,5e-05,2]
[407886014,1772896064208,-1015.76438735,5e-05,2]
[407886015,1772896064233,-1015.76438735,5e-05,2]
[407886016,1772896064257,-1015.76438735,5e-05,2]
[407886017,1772896064281,-1015.76438735,5e-05,2]
[407886018,1772896064304,-1015.76438735,5e-05,2]
[407886019,1772896064328,-1015.76438735,5e-05,2]
[407886020,1772896064351,-1015.76438735,5e-05,2]
[407886021,1772896064377,-1015.76438735,5e-05,2]
[407886022,1772896064402,-1015.76438735,5e-05,2]
[407886023,1772896064423,-1015.76438735,5e-05,2]
[407886024,1772896064447,-1015.76438735,5e-05,2]
[407886025,1772896064471,-1015.76438735,5e-05,2]
[407886026,1772896064493,-1015.76438735,5e-05,2]
[407886027,1772896064516,-1015.76438735,5e-05,2]
[407886028,1772896064539,-1015.76438735,5e-05,2]
[407886029,1772896064561,-1015.76438735,5e-05,2]
[407886030,1772896064584,-1015.76438735,5e-05,2]
[407886031,1772896064607,-1015.76438735,5e-05,2]
[407886032,1772896064632,-1015.76438735,5e-05,2]
[407886033,1772896064657,-1015.76438735,5e-05,2]
[407886034,1772896064681,-1015.76438735,5e-05,2]
[407886035,1772896064704,-1015.76438735,5e-05,2]
[407886036,1772896064728,-1015.76438735,5e-05,2]
[407886037,1772896064752,-1015.76438735,5e-05,2]
[407886038,1772896064774,-1015.76438735,5e-05,2]
[407886039,1772896064796,-1015.76438735,5e-05,2]
[407886040,1772896064819,-1015.76438735,5e-05,2]
[407886041,1772896064843,-1015.76438735,5e-05,2]
[407886042,1772896064867,-1015.76438735,5e-05,2]
[407886043,1772896064890,-1015.76438735,5e-05,2]
[407886044,1772896064915,-1015.76438735,5e-05,2]
[407886045,1772896064939,-987.3229845,5e-05,2]
[407886046,1772896064963,-987.3229845,5e-05,2]
[407886047,1772896064986,-987.3229845,5e-05,2]
[407886048,1772896065008,-987.3229845,5e-05,2]
[407886049,1772896065032,-987.3229845,5e-05,2]
[407886050,1772896065055,-987.3229845,5e-05,2]
[407886051,1772896065078,-987.3229845,5e-05,2]
[407886052,1772896065100,-987.3229845,5e-05,2]
[407886053,1772896065122,-987.3229845,5e-05,2]
[407886054,1772896065144,-987.3229845,5e-05,2]